fUSD/lending_fUSD_20240125
["ID","MTS","AMOUNT","RATE_DAILY","PERIOD"]
[312682121,1706145079541,-500.0,0.00050136,31]
[312682122,1706145079550,-500.0,0.00050136,31]
[312682123,1706145079563,-500.0,0.00050136,31]
[312682124,1706145079573,-500.0,0.00050136,31]
[312682125,1706145079583,-500.0,0.00050136,31]
[312682126,1706145079593,-500.0,0.00050136,31]
[312682127,1706145079602,-500.0,0.00050136,31]
[312682128,1706145079613,-500.0,0.00050136,31]
[312682129,1706145079622,-500.0,0.00050136,31]
[312682130,1706145079632,-250.0,0.00050136,31]
[312682131,1706145079642,-500.0,0.00050136,31]
[312682132,1706145079652,-571.81,0.00050136,31]
[312682133,1706145079661,-500.0,0.00050136,31]
[312682134,1706145079672,-500.0,0.00050136,31]
[312682135,1706145079682,-500.0,0.00050136,31]
[312682136,1706145079691,-500.0,0.00050136,31]
[312682137,1706145079701,-1000.0,0.00050136,7]
[312682138,1706145079710,-500.0,0.00050136,31]
[312682139,1706145079719,-569.3,0.00050136,31]
[312682140,1706145079728,-500.0,0.00050136,31]
[312682141,1706145079737,-500.0,0.00050136,31]
[312682142,1706145079748,-500.0,0.00050136,31]
[312682143,1706145079757,-500.0,0.00050136,30]
[312682144,1706145079767,-500.0,0.00050136,31]
[312682145,1706145079776,-500.0,0.00050136,31]
[312682146,1706145079785,-500.0,0.00050136,31]
[312682147,1706145079796,-500.0,0.00050136,31]
[312682148,1706145079805,-607.8,0.00050136,31]
[312682149,1706145079815,-500.0,0.00050136,31]
[312682150,1706145079825,-500.0,0.00050136,31]
[312682151,1706145079838,-500.0,0.00050136,31]
[312682152,1706145079848,-510.64,0.00050136,31]
[312682153,1706145079858,-500.0,0.00050136,31]
[312682154,1706145079867,-500.0,0.00050136,31]
[312682155,1706145079876,-500.0,0.00050136,31]
[312682156,1706145079886,-500.0,0.00050136,31]
[312682157,1706145079895,-500.0,0.00050136,31]
[312682158,1706145079904,-563.82,0.00050136,31]
[312682159,1706145079914,-500.0,0.00050136,31]
[312682160,1706145079924,-500.0,0.00050136,31]
[312682161,1706145079933,-510.96,0.00050136,31]
[312682162,1706145079942,-500.0,0.00050136,31]
[312682163,1706145079953,-500.0,0.00050136,31]
[312682164,1706145079962,-545.8,0.00050136,31]
[312682165,1706145079970,-500.0,0.00050136,31]
[312682166,1706145079979,-547.01,0.00050136,31]
[312682167,1706145079988,-500.0,0.00050136,31]
[312682168,1706145079996,-500.0,0.00050136,31]
[312682169,1706145080006,-500.0,0.00050136,31]
[312682170,1706145080015,-500.0,0.00050136,31]
[312682171,1706145080024,-500.0,0.00050136,31]
[312682172,1706145080033,-500.0,0.00050136,31]
[312682173,1706145080042,-500.0,0.00050136,31]
[312682174,1706145080052,-500.0,0.00050136,31]
[312682175,1706145080063,-500.0,0.00050136,31]
[312682176,1706145080074,-500.0,0.00050136,31]
[312682177,1706145080084,-500.0,0.00050136,31]
[312682178,1706145080094,-665.93,0.00050136,31]
[312682179,1706145080104,-500.0,0.00050136,31]
[312682180,1706145080114,-500.0,0.00050136,31]
[312682181,1706145080123,-500.0,0.00050136,31]
[312682182,1706145080133,-1000.0,0.00050136,7]
[312682183,1706145080142,-500.0,0.00050136,31]
[312682184,1706145080153,-500.0,0.00050136,31]
[312682185,1706145080162,-500.0,0.00050136,31]
[312682186,1706145080171,-500.0,0.00050136,31]
[312682187,1706145080180,-500.0,0.00050136,31]
[312682188,1706145080190,-500.0,0.00050136,31]
[312682189,1706145080200,-500.0,0.00050136,31]
[312682190,1706145080209,-500.0,0.00050136,31]
[312682191,1706145080218,-4118.15,0.00050136,15]
[312682192,1706145080229,-500.0,0.00050136,31]
[312682193,1706145080238,-937.73,0.00050136,2]
[312682194,1706145080247,-523.13,0.00050136,31]
[312682195,1706145080258,-1968.51,0.00050136,31]
[312682196,1706145080268,-500.0,0.00050136,31]
[312682197,1706145080277,-500.0,0.00050136,31]
[312682198,1706145080287,-500.0,0.00050136,31]
[312682199,1706145080297,-539.3,0.00050136,31]
[312682200,1706145080306,-500.0,0.00050136,31]
[312682201,1706145080321,-500.0,0.00050136,31]
[312682202,1706145080331,-500.0,0.00050136,31]
[312682203,1706145080341,-500.0,0.00050136,31]
[312682204,1706145080351,-500.0,0.00050136,31]
[312682205,1706145080362,-4141.1,0.00050136,31]
[312682206,1706145080371,-569.11149122,0.00050136,31]
[312682207,1706145080381,-500.0,0.00050136,31]
[312682208,1706145080391,-500.0,0.00050136,31]
[312682209,1706145080400,-500.0,0.00050136,31]
[312682210,1706145080409,-500.0,0.00050136,31]
[312682211,1706145080418,-500.0,0.00050136,31]
[312682212,1706145080428,-500.0,0.00050136,31]
[312682213,1706145080437,-500.0,0.00050136,31]
[312682214,1706145080447,-500.0,0.00050136,31]
[312682215,1706145080457,-500.0,0.00050136,31]
[312682216,1706145080466,-500.0,0.00050136,31]
[312682217,1706145080476,-500.0,0.00050136,2]
[312682218,1706145080485,-792.61,0.00050136,31]
[312682219,1706145080494,-500.0,0.00050136,31]
[312682220,1706145080503,-500.0,0.00050136,31]
[312682221,1706145080512,-500.0,0.00050136,31]
[312682222,1706145080523,-500.0,0.00050136,31]
[312682223,1706145080533,-500.0,0.00050136,31]
[312682224,1706145080542,-500.0,0.00050136,2]
[312682225,1706145080552,-500.0,0.00050136,31]
[312682226,1706145080567,-500.0,0.00050136,31]
[312682227,1706145080576,-500.0,0.00050136,31]
[312682228,1706145080585,-702.69,0.00050136,31]
[312682229,1706145080595,-500.0,0.00050136,31]
[312682230,1706145080604,-500.0,0.00050136,31]
[312682231,1706145080614,-500.0,0.00050136,31]
[312682232,1706145080623,-500.0,0.00050136,31]
[312682233,1706145080634,-668.66,0.00050136,31]
[312682234,1706145080643,-619.19,0.00050136,31]
[312682235,1706145080652,-500.0,0.00050136,31]
[312682236,1706145080661,-953.39,0.00050136,31]
[312682237,1706145080670,-500.0,0.00050136,31]
[312682238,1706145080680,-500.0,0.00050136,31]
[312682239,1706145080689,-500.0,0.00050136,31]
[312682240,1706145080699,-500.0,0.00050136,31]
[312682241,1706145080708,-500.0,0.00050136,31]
[312682242,1706145080717,-500.0,0.00050136,31]
[312682243,1706145080727,-500.0,0.00050136,31]
[312682244,1706145080738,-500.0,0.00050136,31]
[312682245,1706145080747,-500.0,0.00050136,31]
[312682246,1706145080757,-500.0,0.00050136,31]
[312682247,1706145080925,-500.0,0.00050136,31]
[312682248,1706145080935,-524.2,0.00050136,31]
[312682249,1706145080944,-500.0,0.00050136,31]
[312682250,1706145080953,-500.0,0.00050136,31]
[312682251,1706145080962,-500.0,0.00050136,31]
[312682252,1706145080971,-500.0,0.00050136,31]
[312682253,1706145080981,-500.0,0.00050136,31]
[312682254,1706145080990,-781.79,0.00050136,31]
[312682255,1706145081000,-355.96175915,0.00050136,31]
[312682256,1706145081009,-500.0,0.00050136,31]
[312682257,1706145081020,-585.92640791,0.00050136,31]
[312682258,1706145081030,-500.0,0.00050136,10]
[312682259,1706145081040,-500.0,0.00050136,31]
[312682260,1706145081050,-718.1,0.00050136,31]
[312682261,1706145081059,-280.12966219,0.00050136,31]
[312682262,1706145081070,-500.0,0.00050136,31]
[312682263,1706145081080,-500.0,0.00050136,31]
[312682264,1706145081090,-558.82,0.00050136,31]
[312682265,1706145081100,-500.0,0.00050136,31]
[312682266,1706145081110,-500.0,0.00050136,31]
[312682267,1706145081119,-527.47773332,0.00050136,31]
[312682268,1706145081129,-500.0,0.00050136,31]
[312682269,1706145081138,-500.0,0.00050136,31]
[312682270,1706145081148,-500.0,0.00050136,31]
[312682271,1706145081157,-500.0,0.00050136,31]
[312682272,1706145081166,-500.0,0.00050136,31]
[312682273,1706145081176,-500.0,0.00050136,31]
[312682274,1706145081186,-500.0,0.00050136,31]
[312682275,1706145081196,-500.0,0.00050136,31]
[312682276,1706145081205,-500.0,0.00050136,31]
[312682277,1706145081215,-500.0,0.00050136,31]
[312682278,1706145081225,-719.02,0.00050136,31]
[312682279,1706145081234,-500.0,0.00050136,31]
[312682280,1706145081244,-500.0,0.00050136,31]
[312682281,1706145081254,-516.45638667,0.00050136,31]
[312682282,1706145081263,-500.0,0.00050136,31]
[312682283,1706145081273,-250.18947219,0.00050136,31]
[312682284,1706145081283,-500.0,0.00050136,31]
[312682285,1706145081292,-530.57,0.00050136,31]
[312682286,1706145081301,-590.77,0.00050136,31]
[312682287,1706145081312,-500.0,0.00050136,31]
[312682288,1706145081321,-500.0,0.00050136,31]
[312682289,1706145081331,-500.0,0.00050136,31]
[312682290,1706145081340,-500.0,0.00050136,31]
[312682291,1706145081350,-500.0,0.00050136,31]
[312682292,1706145081360,-500.0,0.00050136,31]
[312682293,1706145081369,-500.0,0.00050136,31]
[312682294,1706145081378,-532.21353331,0.00050136,31]
[312682295,1706145081388,-1141.79,0.00050136,31]
[312682296,1706145081398,-500.0,0.00050136,31]
[312682297,1706145081407,-500.0,0.00050136,31]
[312682298,1706145081416,-626.76,0.00050136,31]
[312682299,1706145081426,-500.0,0.00050136,31]
[312682300,1706145081435,-500.0,0.00050136,31]
[312682301,1706145081444,-500.0,0.00050136,31]
[312682302,1706145081453,-500.0,0.00050136,31]
[312682303,1706145081462,-500.0,0.00050136,31]
[312682304,1706145081472,-500.0,0.00050136,31]
[312682305,1706145081481,-500.0,0.00050136,31]
[312682306,1706145081490,-500.0,0.00050136,31]
[312682307,1706145081500,-500.0,0.00050136,31]
[312682308,1706145081509,-500.0,0.00050136,31]
[312682309,1706145081519,-529.72,0.00050136,31]
[312682310,1706145081529,-502.97,0.00050136,31]
[312682311,1706145081539,-500.0,0.00050136,31]
[312682312,1706145081548,-500.0,0.00050136,31]
[312682313,1706145081560,-500.0,0.00050136,31]
[312682314,1706145081571,-500.0,0.00050136,31]
[312682315,1706145081581,-992.14,0.00050136,120]
[312682316,1706145081591,-500.0,0.00050136,31]
[312682317,1706145081601,-500.0,0.00050136,31]
[312682318,1706145081610,-500.0,0.00050136,31]
[312682319,1706145081620,-500.0,0.00050136,31]
[312682320,1706145081631,-500.0,0.00050136,31]
[312682321,1706145081641,-500.0,0.00050136,31]
[312682322,1706145081651,-500.0,0.00050136,31]
[312682323,1706145081660,-500.0,0.00050136,31]
[312682324,1706145081670,-500.0,0.00050136,31]
[312682325,1706145081679,-500.0,0.00050136,31]
[312682326,1706145081689,-500.0,0.00050136,31]
[312682327,1706145081698,-500.0,0.00050136,31]
[312682328,1706145081708,-316.5867107,0.00050136,31]
[312682329,1706145081717,-500.0,0.00050136,31]
[312682330,1706145081727,-500.0,0.00050136,31]
[312682331,1706145081736,-500.0,0.00050136,60]
[312682332,1706145081746,-500.0,0.00050136,31]
[312682333,1706145081755,-500.0,0.00050136,31]
[312682334,1706145081764,-500.0,0.00050136,31]
[312682335,1706145081773,-697.72,0.00050136,2]
[312682336,1706145081782,-500.0,0.00050136,31]
[312682337,1706145081791,-500.0,0.00050136,31]
[312682338,1706145081801,-624.31901228,0.00050136,31]
[312682339,1706145081813,-500.0,0.00050136,31]
[312682340,1706145081822,-500.0,0.00050136,31]
[312682341,1706145081832,-500.0,0.00050136,31]
[312682342,1706145081841,-796.46,0.00050136,31]
[312682343,1706145081851,-500.0,0.00050136,31]
[312682344,1706145081861,-296.75486082,0.00050136,31]
[312682345,1706145081871,-500.0,0.00050136,31]
[312682346,1706145081881,-500.0,0.00050136,31]
[312682347,1706145081891,-500.0,0.00050136,31]
[312682348,1706145081901,-500.0,0.00050136,31]
[312682349,1706145081910,-502.99,0.00050136,31]
[312682350,1706145081919,-500.0,0.00050136,31]
[312682351,1706145081928,-500.0,0.00050136,31]
[312682352,1706145081937,-500.0,0.00050136,31]
[312682353,1706145081946,-500.0,0.00050136,31]
[312682354,1706145081955,-1084.63,0.00050136,31]
[312682355,1706145081964,-500.0,0.00050136,31]
[312682356,1706145081974,-500.0,0.00050136,31]
[312682357,1706145081983,-500.0,0.00050136,31]
[312682358,1706145081993,-500.0,0.00050136,31]
[312682359,1706145082002,-500.0,0.00050136,31]
[312682360,1706145082011,-500.0,0.00050136,31]
[312682361,1706145082020,-500.0,0.00050136,31]
[312682362,1706145082029,-1233.91,0.00050136,7]
[312682363,1706145082038,-500.0,0.00050136,31]
[312682364,1706145082047,-500.0,0.00050136,31]
[312682365,1706145082057,-500.0,0.00050136,31]
[312682366,1706145082068,-500.0,0.00050136,31]
[312682367,1706145082077,-500.0,0.00050136,31]
[312682368,1706145082087,-500.0,0.00050136,31]
[312682369,1706145082096,-500.0,0.00050136,14]
[312682370,1706145082105,-500.0,0.00050136,31]
[312682371,1706145082114,-500.0,0.00050136,31]
[312682372,1706145082123,-500.0,0.00050136,31]
[312682373,1706145082132,-500.0,0.00050136,31]
[312682374,1706145082142,-500.0,0.00050136,31]
[312682375,1706145082151,-500.0,0.00050136,31]
[312682376,1706145082160,-500.0,0.00050136,31]
[312682377,1706145082170,-500.0,0.00050136,31]
[312682378,1706145082179,-500.0,0.00050136,31]
[312682379,1706145082189,-500.0,0.00050136,31]
[312682380,1706145082198,-669.25,0.00050136,20]
[312682381,1706145082208,-500.0,0.00050136,31]
[312682382,1706145082217,-500.0,0.00050136,31]
[312682383,1706145082226,-500.0,0.00050136,31]
[312682384,1706145082237,-500.0,0.00050136,31]
[312682385,1706145082246,-500.0,0.00050136,31]
[312682386,1706145082256,-500.0,0.00050136,31]
[312682387,1706145082266,-500.0,0.00050136,31]
[312682388,1706145082276,-500.0,0.00050136,31]
[312682389,1706145082285,-500.0,0.00050136,31]
[312682390,1706145082295,-547.47278953,0.00050136,31]
[312682391,1706145082304,-500.0,0.00050136,31]
[312682392,1706145082313,-500.0,0.00050136,31]
[312682393,1706145082322,-1309.13,0.00050136,7]
[312682394,1706145082332,-500.0,0.00050136,31]
[312682395,1706145082341,-500.0,0.00050136,31]
[312682396,1706145082350,-500.0,0.00050136,31]
[312682397,1706145082359,-520.3,0.00050136,31]
[312682398,1706145082369,-500.0,0.00050136,31]
[312682399,1706145082378,-500.0,0.00050136,31]
[312682400,1706145082387,-500.0,0.00050136,31]
[312682401,1706145082397,-500.0,0.00050136,31]
[312682402,1706145082406,-500.0,0.00050136,31]
[312682403,1706145082415,-500.0,0.00050136,31]
[312682404,1706145082424,-500.0,0.00050136,31]
[312682405,1706145082433,-500.0,0.00050136,31]
[312682406,1706145082442,-983.18,0.00050136,31]
[312682407,1706145082451,-500.0,0.00050136,31]
[312682408,1706145082461,-523.88,0.00050136,31]
[312682409,1706145082470,-500.0,0.00050136,31]
[312682410,1706145082479,-500.0,0.00050136,31]
[312682411,1706145082488,-500.0,0.00050136,31]
[312682412,1706145082498,-500.0,0.00050136,31]
[312682413,1706145082507,-500.0,0.00050136,31]
[312682414,1706145082517,-500.0,0.00050136,31]
[312682415,1706145082528,-500.0,0.00050136,31]
[312682416,1706145082537,-1157.14,0.00050136,31]
[312682417,1706145082546,-500.0,0.00050136,31]
[312682418,1706145082555,-500.0,0.00050136,31]
[312682419,1706145082569,-500.0,0.00050136,31]
[312682420,1706145082578,-500.0,0.00050136,31]
[312682421,1706145082587,-500.0,0.00050136,31]
[312682422,1706145082596,-500.0,0.00050136,31]
[312682423,1706145082606,-594.98,0.00050136,31]
[312682424,1706145082615,-500.0,0.00050136,31]
[312682425,1706145082624,-500.0,0.00050136,31]
[312682426,1706145082634,-500.0,0.00050136,31]
[312682427,1706145082643,-500.0,0.00050136,31]
[312682428,1706145082653,-500.0,0.00050136,31]
[312682429,1706145082662,-500.0,0.00050136,31]
[312682430,1706145082671,-621.48,0.00050136,31]
[312682431,1706145082681,-500.0,0.00050136,31]
[312682432,1706145082690,-659.17,0.00050136,31]
[312682433,1706145082699,-500.0,0.00050136,31]
[312682434,1706145082708,-500.0,0.00050136,31]
[312682435,1706145082717,-701.09,0.00050136,31]
[312682436,1706145082726,-500.0,0.00050136,31]
[312682437,1706145082736,-500.0,0.00050136,31]
[312682438,1706145082745,-1697.01,0.00050136,31]
[312682439,1706145082754,-500.0,0.00050136,31]
[312682440,1706145082764,-500.0,0.00050136,31]
[312682441,1706145082773,-500.0,0.00050136,31]
[312682442,1706145082782,-500.0,0.00050136,31]
[312682443,1706145082791,-500.0,0.00050136,31]
[312682444,1706145082801,-500.0,0.00050136,31]
[312682445,1706145082812,-500.0,0.00050136,31]
[312682446,1706145082821,-523.57,0.00050136,31]
[312682447,1706145082830,-569.44734862,0.00050136,31]
[312682448,1706145082839,-500.0,0.00050136,31]
[312682449,1706145082848,-500.0,0.00050136,31]
[312682450,1706145082857,-728.06,0.00050136,31]
[312682451,1706145082866,-500.0,0.00050136,31]
[312682452,1706145082875,-511.53,0.00050136,31]
[312682453,1706145082884,-500.0,0.00050136,31]
[312682454,1706145082894,-500.0,0.00050136,31]
[312682455,1706145082903,-500.0,0.00050136,31]
[312682456,1706145082912,-500.0,0.00050136,31]
[312682457,1706145082922,-665.87,0.00050136,31]
[312682458,1706145082931,-698.55,0.00050136,31]
[312682459,1706145082940,-500.0,0.00050136,31]
[312682460,1706145082950,-535.75,0.00050136,31]
[312682461,1706145082959,-500.0,0.00050136,31]
[312682462,1706145082968,-500.0,0.00050136,31]
[312682463,1706145082977,-500.0,0.00050136,31]
[312682464,1706145082986,-500.0,0.00050136,31]
[312682465,1706145082995,-973.03,0.00050136,2]
[312682466,1706145083004,-3653.94,0.00050136,31]
[312682467,1706145083013,-944.79,0.00050136,31]
[312682468,1706145083022,-500.0,0.00050136,31]
[312682469,1706145083032,-500.0,0.00050136,31]
[312682470,1706145083041,-500.0,0.00050136,31]
[312682471,1706145083050,-500.0,0.00050136,31]
[312682472,1706145083059,-517.29,0.00050136,31]
[312682473,1706145083069,-766.32,0.00050136,31]
[312682474,1706145083078,-578.45,0.00050136,31]
[312682475,1706145083087,-500.0,0.00050136,31]
[312682476,1706145083096,-500.0,0.00050136,31]
[312682477,1706145083105,-500.0,0.00050136,31]
[312682478,1706145083114,-500.0,0.00050136,31]
[312682479,1706145083123,-571.27,0.00050136,31]
[312682480,1706145083131,-500.0,0.00050136,31]
[312682481,1706145083141,-8715.7,0.00050136,31]
[312682482,1706145083149,-500.0,0.00050136,31]
[312682483,1706145083158,-1119.03,0.00050136,2]
[312682484,1706145083168,-500.0,0.00050136,31]
[312682485,1706145083177,-563.62,0.00050136,31]
[312682486,1706145083186,-203.82,0.00050136,31]
[312682487,1706145083195,-381.72659974,0.00050136,31]
[312682488,1706145083204,-500.0,0.00050136,31]
[312682489,1706145083214,-500.0,0.00050136,31]
[312682490,1706145083223,-551.67,0.00050136,31]
[312682491,1706145083232,-1258.54,0.00050136,31]
[312682492,1706145083241,-500.0,0.00050136,31]
[312682493,1706145083250,-797.85,0.00050136,31]
[312682494,1706145083259,-500.0,0.00050136,31]
[312682495,1706145083268,-500.0,0.00050136,31]
[312682496,1706145083278,-500.0,0.00050136,31]
[312682497,1706145083287,-500.0,0.00050136,31]
[312682498,1706145083296,-500.0,0.00050136,31]
[312682499,1706145083306,-501.1814769,0.00050136,31]
[312682500,1706145083316,-524.49,0.00050136,31]
[312682501,1706145083326,-1041.4,0.00050136,31]
[312682502,1706145083336,-500.0,0.00050136,31]
[312682503,1706145083345,-500.0,0.00050136,31]
[312682504,1706145083354,-500.0,0.00050136,31]
[312682505,1706145083512,-1295.76,0.00050136,31]
[312682506,1706145083523,-572.67,0.00050136,31]
[312682507,1706145083532,-500.0,0.00050136,31]
[312682508,1706145083542,-866.53,0.00050136,31]
[312682509,1706145083551,-500.0,0.00050136,31]
[312682510,1706145083563,-717.84,0.00050136,31]
[312682511,1706145083572,-531.79,0.00050136,31]
[312682512,1706145083581,-500.0,0.00050136,31]
[312682513,1706145083590,-500.0,0.00050136,31]
[312682514,1706145083599,-543.89,0.00050136,31]
[312682515,1706145083609,-500.0,0.00050136,31]
[312682516,1706145083619,-1360.18,0.00050136,31]
[312682517,1706145083630,-1845.53,0.00050136,31]
[312682518,1706145083639,-500.0,0.00050136,31]
[312682519,1706145083648,-500.0,0.00050136,31]
[312682520,1706145083658,-738.6,0.00050136,31]
[312682521,1706145083668,-645.65,0.00050136,31]
[312682522,1706145083677,-541.32,0.00050136,31]
[312682523,1706145083686,-646.31546724,0.00050136,31]
[312682524,1706145083696,-500.0,0.00050136,31]
[312682525,1706145083705,-500.0,0.00050136,31]
[312682526,1706145083715,-500.0,0.00050136,31]
[312682527,1706145083726,-549.96098053,0.00050136,31]
[312682528,1706145083736,-500.0,0.00050136,31]
[312682529,1706145083746,-569.14,0.00050136,31]
[312682530,1706145083756,-500.0,0.00050136,31]
[312682531,1706145083765,-500.0,0.00050136,31]
[312682532,1706145083775,-500.0,0.00050136,31]
[312682533,1706145083784,-500.0,0.00050136,31]
[312682534,1706145083793,-567.82,0.00050136,31]
[312682535,1706145083802,-959.04,0.00050136,31]
[312682536,1706145083812,-500.0,0.00050136,31]
[312682537,1706145083821,-1000.0,0.00050136,30]
[312682538,1706145083831,-500.0,0.00050136,31]
[312682539,1706145083841,-500.0,0.00050136,31]
[312682540,1706145083850,-672.35,0.00050136,31]
[312682541,1706145083859,-500.0,0.00050136,31]
[312682542,1706145083868,-3857.57,0.00050136,5]
[312682543,1706145083878,-1206.46,0.00050136,31]
[312682544,1706145083886,-608.48,0.00050136,31]
[312682545,1706145083895,-500.0,0.00050136,31]
[312682546,1706145083905,-1000.0,0.00050136,2]
[312682547,1706145083914,-2393.75,0.00050136,31]
[312682548,1706145083923,-500.0,0.00050136,31]
[312682549,1706145083931,-681.13,0.00050136,31]
[312682550,1706145083941,-500.0,0.00050136,31]
[312682551,1706145083949,-683.16,0.00050136,31]
[312682552,1706145083959,-500.0,0.00050136,31]
[312682553,1706145083967,-714.81,0.00050136,31]
[312682554,1706145083976,-500.0,0.00050136,31]
[312682555,1706145083986,-500.0,0.00050136,31]
[312682556,1706145083994,-500.0,0.00050136,31]
[312682557,1706145084003,-966.39,0.00050136,31]
[312682558,1706145084013,-5066.61,0.00050136,31]
[312682559,1706145084022,-454.14026856,0.00050136,31]
[312682560,1706145084030,-585.71,0.00050136,31]
[312682561,1706145084039,-2701.77,0.00050136,31]
[312682562,1706145084048,-535.75,0.00050136,31]
[312682563,1706145084058,-500.0,0.00050136,31]
[312682564,1706145084068,-500.0,0.00050136,31]
[312682565,1706145084078,-2453.54,0.00050136,31]
[312682566,1706145084087,-532.81,0.00050136,31]
[312682567,1706145084096,-2066.55,0.00050136,31]
[312682568,1706145084105,-687.75,0.00050136,31]
[312682569,1706145084114,-580.27,0.00050136,31]
[312682570,1706145084123,-5784.02,0.00050136,31]
[312682571,1706145084132,-1006.46,0.00050136,31]
[312682572,1706145084142,-500.0,0.00050136,31]
[312682573,1706145084151,-500.0,0.00050136,31]
[312682574,1706145084160,-500.0,0.00050136,31]
[312682575,1706145084169,-500.0,0.00050136,31]
[312682576,1706145084179,-537.04,0.00050136,31]
[312682577,1706145084188,-500.0,0.00050136,31]
[312682578,1706145084197,-584.5,0.00050136,31]
[312682579,1706145084206,-835.92,0.00050136,31]
[312682580,1706145084216,-742.38,0.00050136,31]
[312682581,1706145084225,-660.52,0.00050136,31]
[312682582,1706145084234,-500.0,0.00050136,31]
[312682583,1706145084243,-500.0,0.00050136,31]
[312682584,1706145084252,-500.0,0.00050136,31]
[312682585,1706145084261,-540.87,0.00050136,31]
[312682586,1706145084271,-1086.36,0.00050136,31]
[312682587,1706145084280,-414.22490664,0.00050136,31]
[312682588,1706145084289,-1735.79,0.00050136,31]
[312682589,1706145084298,-650.74,0.00050136,31]
[312682590,1706145084307,-500.0,0.00050136,31]
[312682591,1706145084318,-500.0,0.00050136,31]
[312682592,1706145084327,-500.0,0.00050136,31]
[312682593,1706145084337,-500.0,0.00050136,31]
[312682594,1706145084346,-677.43,0.00050136,31]
[312682595,1706145084355,-500.0,0.00050136,31]
[312682596,1706145084364,-700.44,0.00050136,31]
[312682597,1706145084374,-500.0,0.00050136,31]
[312682598,1706145084383,-1060.9,0.00050136,31]
[312682599,1706145084392,-500.55,0.00050136,31]
[312682600,1706145084401,-547.24,0.00050136,31]
[312682601,1706145084410,-500.0,0.00050136,31]
[312682602,1706145084419,-2280.94,0.00050136,31]
[312682603,1706145084428,-500.0,0.00050136,31]
[312682604,1706145084437,-552.79,0.00050136,31]
[312682605,1706145084446,-1320.68,0.00050136,31]
[312682606,1706145084455,-500.0,0.00050136,31]
[312682607,1706145084464,-1247.14,0.00050136,31]
[312682608,1706145084473,-500.0,0.00050136,31]
[312682609,1706145084482,-500.0,0.00050136,31]
[312682610,1706145084491,-581.01,0.00050136,31]
[312682611,1706145084500,-500.0,0.00050136,31]
[312682612,1706145084510,-712.54,0.00050136,31]
[312682613,1706145084519,-500.0,0.00050136,31]
[312682614,1706145084536,-500.0,0.00050136,31]
[312682615,1706145084546,-608.94,0.00050136,31]
[312682616,1706145084555,-500.0,0.00050136,31]
[312682617,1706145084566,-693.55,0.00050136,31]
[312682618,1706145084575,-500.0,0.00050136,31]
[312682619,1706145084584,-500.0,0.00050136,31]
[312682620,1706145084593,-500.0,0.00050136,31]